[Event "53rd Mar Del Plata Open 2024"]
[Site "Mar Del Plata"]
[Date "2024.03.24"]
[Round "2.8"]
[White "Valerga, Diego"]
[Black "Zarate, Cristian"]
[Result "1-0"]
[ECO "E12"]
[WhiteElo "2442"]
[BlackElo "2020"]
[Annotator "TA"]
[PlyCount "55"]
[EventDate "2024.03.23"]
[EventType "swiss"]
[EventCountry "ARG"]
[SourceTitle "playchess.com"]
[Source "ChessBase"]
[SourceQuality "1"]
[TimeControl "5400+30"]

{[%evp 16,55,53,37,41,39,112,62,114,112,103,104,104,120,118,126,179,167,201,190,221,200,305,291,303,285,328,318,271,218,453,451,410,368,405,408,412,400,413,413,428,425]} 1. d4 {[%emt 0:00:07]} Nf6 {[%emt 0:01:53]} 2. Nf3 {[%emt 0:00:14]} e6 {[%emt 0:00:11]} 3. c4 {[%emt 0:01:10]} b6 {[%emt 0:00:16]} 4. a3 {[%emt 0:01:23]} Bb7 {[%emt 0:00:10]} 5. Nc3 {[%emt 0:00:08]} Be7 {[%emt 0:03:38]} 6. d5 {[%emt 0:00:44]} O-O {[%emt 0:00:37]} 7. e4 {[%emt 0:00:31]} Re8 {[%emt 0:03:20]} 8. Bd3 {[%emt 0:04:07]} exd5 {[%emt 0:14:13]} 9. cxd5 {[%emt 0:00:32]} d6 {[%emt 0:00:48]} 10. O-O {[%emt 0:00:35]} Nbd7 {[%emt 0:00:25]} (10... c6 $14) 11. Re1 {[%emt 0:02:23] White is more active.} ({White should try} 11. Nd4 $16) 11... Ng4 {[%emt 0:12:27]} ({Better is} 11... Ne5 $14) 12. Nd4 {[%emt 0:05:58]} Nge5 {[%emt 0:09:28]} 13. Bc2 {[%emt 0:03:28]} Bf6 {[%emt 0:03:27]} 14. f4 {[%emt 0:03:18]} Ng6 {[%emt 0:04:10]} 15. Be3 {[%emt 0:00:15]} h5 {[%emt 0:14:20]} 16. Qf3 $18 {[%emt 0:13:08]} (16. Qxh5 $6 Nxf4 17. Qf5 (17. Bxf4 Bxd4+ 18. Kh1 Bxc3 $11) 17... Ng6 $16) 16... h4 {[%emt 0:02:19] Black is weak on the light squares} 17. Rad1 {[%emt 0:03:03][%cal Oe4e5]} a6 {[%emt 0:11:03]} 18. g4 {[%emt 0:06:18][%cal Bg2g4,Bg4g5][%mdl 32]} b5 {[%emt 0:10:13]} (18... Bxd4 $142 19. Bxd4 Rc8) 19. g5 {[%emt 0:01:39]} Bxd4 {[%emt 0:00:30]} 20. Rxd4 {[%emt 0:00:19]} ({Don't play} 20. Bxd4 Ndf8 21. Kh1 a5 $18) 20... Nb6 {[%emt 0:00:33]} 21. Qh5 {[%emt 0:10:45]} Nc4 {[%emt 0:02:40][%cal Oc4e3]} 22. f5 {[%emt 0:06:58][%cal Oe4e5] [#] And now e5! would win.} Nxe3 $2 {[%emt 0:02:50]} (22... Nge5 {was called for.}) 23. Rxe3 {[%emt 0:00:08]} Re5 {[%emt 0:01:03]} 24. Kf2 {[%emt 0:04:37]} (24. fxg6 $2 {is the wrong capture.} Rxg5+ 25. Kh1 Rxh5 $19) 24... Bc8 {[%emt 0:01:24]} 25. fxg6 {[%emt 0:03:53]} fxg6 {[%emt 0:00:06]} 26. Qxh4 {[%emt 0:02:58]} Rxg5 {[%emt 0:00:22] [#] ...Qf6+ is the strong threat.} 27. Rg3 {[%emt 0:00:59]} Qf6+ {[%emt 0:00:57]} 28. Ke3 {[%emt 0:00:13] Black got outplayed after the opening.   Weighted Error Value: White=0.09 (flawless) /Black=0.38.  Mistake:       	White=1     	Black=5      OK:         	White=12    	Black=7} 1-0

[Event "53rd Mar Del Plata Open 2024"]
[Site "Mar Del Plata"]
[Date "2024.03.24"]
[Round "2.9"]
[White "Kiselev, Vitalii"]
[Black "Duarte Fernandez, Agustin"]
[Result "1-0"]
[ECO "A26"]
[WhiteElo "2519"]
[BlackElo "2023"]
[Annotator "TA"]
[PlyCount "153"]
[EventDate "2024.03.23"]
[EventType "swiss"]
[EventCountry "ARG"]
[SourceTitle "playchess.com"]
[Source "ChessBase"]
[SourceQuality "1"]
[TimeControl "5400+30"]

{[%evp 17,153,20,33,29,46,27,25,15,33,42,40,13,18,14,33,29,24,19,17,7,48,50,82,-8,0,-40,0,-72,-75,-189,-182,-178,-95,-126,-126,-141,-123,-102,-50,-117,-63,-60,26,-54,-50,-42,-30,-56,-43,-319,-295,-391,-133,-180,-169,-166,-37,-61,-61,-49,55,40,76,56,90,0,504,480,616,436,408,335,335,308,329,333,292,266,378,399,518,511,538,531,598,437,523,504,488,418,376,363,470,464,411,277,277,268,291,282,253,235,216,59,59,59,59,59,59,59,59,59,59,8,59,59,59,59,59,0,59,59,59,59,59,59,59,8,29972,29974,29973,29974,29975,29976,29976,29977,29980,29981]} 1. Nf3 {[%emt 0:00:07]} Nf6 {[%emt 0:00:12]} 2. c4 {[%emt 0:00:19]} g6 {[%emt 0:00:28]} 3. Nc3 {[%emt 0:00:15]} Bg7 {[%emt 0:00:11]} 4. g3 {[%emt 0:02:41]} d6 {[%emt 0:01:32]} 5. Bg2 {[%emt 0:00:06]} e5 {[%emt 0:00:10]} 6. O-O {[%emt 0:00:12]} O-O {[%emt 0:00:50]} 7. d3 {[%emt 0:00:25]} Nc6 {[%emt 0:01:52]} 8. Rb1 {[%emt 0:00:04]} a6 {[%emt 0:03:07]} 9. b4 {[%emt 0:00:21]} h6 {[%emt 0:00:25]} 10. a4 {[%emt 0:00:23]} Bd7 {[%emt 0:05:40]} 11. b5 {[%emt 0:00:23]} axb5 {[%emt 0:00:16]} 12. axb5 {[%emt 0:00:02] White has an edge.} Ne7 {[%emt 0:00:07]} 13. Bb2 {[%emt 0:00:50]} Qc8 {[%emt 0:00:30]} 14. Re1 {[%emt 0:00:03]} Bh3 {[%emt 0:00:12]} 15. Bh1 {[%emt 0:00:03]} Kh7 {[%emt 0:03:51]} 16. Qc2 {[%emt 0:00:49]} Qe6 {[%emt 0:00:35]} 17. Ra1 {[%emt 0:06:31]} c6 {[%emt 0:00:25]} 18. Ra4 {[%emt 0:05:22]} d5 {[%emt 0:01:17]} 19. bxc6 {[%emt 0:01:05]} bxc6 {[%emt 0:00:11]} 20. Nd2 {[%emt 0:06:05]} (20. cxd5 $16 cxd5 21. Nxe5) 20... Nf5 $11 {[%emt 0:02:51]} 21. Rea1 {[%emt 0:01:11]} Rxa4 {[%emt 0:00:25]} 22. Qxa4 {[%emt 0:06:48]} (22. Nxa4 $11 {remains equal.} Nd4 23. Bxd4 exd4 24. Bf3) 22... Rb8 $1 $17 {[%emt 0:00:14]} 23. Qa2 {[%emt 0:00:09]} (23. Nd1 $17) 23... Nd4 {[%emt 0:00:29][%cal Oe5e4] ...e4! is the strong threat.} 24. e3 {[%emt 0:06:56]} Nc2 {[%emt 0:00:13]} (24... Qf5 $19 {[%cal Of6g4] ...Ng4! would now be deadly.} 25. exd4 Qxd3) 25. Rc1 {[%emt 0:08:10]} Nb4 {[%emt 0:00:11][%csl LRa2,LRd3]} 26. Qb1 {[%emt 0:00:31]} Ng4 {[%emt 0:01:32][%cal Og4f2] And now ...Nxf2! would win.} 27. Nd1 {[%emt 0:01:59]} Qf5 {[%emt 0:02:17]} (27... d4 $17 28. Ba3 c5 29. Bxb4 cxb4 (29... Rxb4 30. Qa2 $17)) 28. e4 {[%emt 0:02:26]} (28. Rc3 $1 $15) 28... Qd7 {[%emt 0:05:49]} (28... dxe4 $1 $17 {Hoping for ...Qd7.} 29. Bxe4 Qd7) 29. Ba3 {[%emt 0:07:05]} Bf8 {[%emt 0:02:15]} (29... dxe4 $15 30. Bxb4 e3 (30... Qxd3 $2 31. Qxd3 exd3 32. Bc3 $18) (30... c5 31. Nxe4 cxb4 32. c5 $19) 31. Nxe3 (31. fxe3 c5 $17) 31... Nxe3 32. fxe3 c5) 30. c5 {[%emt 0:06:55]} (30. cxd5 $11 Be7 31. Qb2) 30... Na6 $15 {[%emt 0:02:34]} 31. Qc2 {[%emt 0:00:11]} dxe4 {[%emt 0:01:17]} 32. Nxe4 {[%emt 0:00:35]} Nb4 {[%emt 0:02:04]} (32... Nc7 {simplifies} 33. Bg2 Bxg2 34. Kxg2 f5) 33. Qc4 {[%emt 0:07:55][%mdl 8192]} ({White should try} 33. Bxb4 $15 Rxb4 34. Ra1) 33... Nxd3 $19 {[%emt 0:01:03]} 34. Bf3 {[%emt 0:00:23] Threatens to win with Bxg4.} Kg7 $2 {[%emt 0:01:23]} (34... Nxc1 $19 35. Bxc1 (35. Bxg4 $2 Qd3 $19) 35... Bg7) 35. Rc3 {[%emt 0:04:17]} (35. Ra1 $17) 35... Ne1 $1 {[%emt 0:04:12] ( -> ...Nxf3+)} 36. Be2 {[%emt 0:02:18]} Rb1 {[%emt 0:01:52]} ({Better is} 36... Qd4 $1 $19 {Strongly threatening ...f5.} 37. Ne3 Nxe3 (37... Rb1 38. Rc1 $15) 38. fxe3 Qxc4 39. Bxc4 Nf3+ 40. Kh1 Bf5) 37. Nd6 {[%emt 0:01:56]} Bxd6 $1 {[%emt 0:09:05]} 38. cxd6 {[%emt 0:00:04]} Qf5 {[%emt 0:00:12] Prevents Qe4} (38... Nf6 $15 39. Qxc6 Qxc6 40. Rxc6 Nd3) 39. f3 $1 $14 {[%emt 0:03:49][%mdl 1024] White has compensation. Really sharp!} Nf6 {[%emt 0:00:30]} 40. Kf2 {[%emt 0:07:02][%cal Bg1f2,Bf2e2,Be2f3][%mdl 32]} (40. Bb2 $5) 40... Ng2 {[%emt 0:01:30]} 41. Bd3 {[%emt 0:02:54]} (41. Qxc6 $2 Ng4+ 42. Kg1 Nf4 $19 (42... N4e3 43. Bc1 $16)) (41. Qd3 $16) 41... Ng4+ $2 {[%emt 0:09:05][%mdl 8192]} (41... Rxd1 $11 42. Bxf5 Rd2+ 43. Kg1 Rd1+ 44. Kf2 Rd2+ 45. Kf1 (45. Kg1 Rd1+ 46. Kf2 $11) 45... Ne3+ (45... Bxf5 $2 46. d7 $18) 46. Ke1 Nxc4 47. Rxc4 Rxh2 (47... Bxf5 $2 48. Kxd2 Nd7 49. Rxc6 $18) 48. Bxh3 Rxh3) 42. Ke2 $18 {[%emt 0:01:02]} e4 {[%emt 0:00:33]} 43. Bxb1 {[%emt 0:01:00]} exf3+ {[%emt 0:00:18]} 44. Rxf3 {[%emt 0:00:14]} Qxf3+ {[%emt 0:00:19]} 45. Kxf3 {[%emt 0:00:10]} Ne5+ {[%emt 0:00:06]} 46. Kf2 {[%emt 0:01:04] White threatens Bb2 and mate.} Nxc4 {[%emt 0:00:38]} 47. Bc5 {[%emt 0:00:27]} Nd2 {[%emt 0:00:56]} (47... f6 {is a better defense.} 48. Be4 (48. d7 Bxd7 49. Kxg2 g5 $18) 48... Bg4) 48. Bd3 {[%emt 0:03:24]} Kf6 {[%emt 0:03:43]} 49. Bb4 {[%emt 0:02:56]} Nb3 {[%emt 0:00:26]} 50. Bc3+ {[%emt 0:00:07]} Kg5 {[%emt 0:00:35]} 51. Be4 {[%emt 0:01:04] A strong pair of Bishops.} Nf4 {[%emt 0:04:48]} 52. gxf4+ {[%emt 0:00:20]} Kxf4 {[%emt 0:00:09]} 53. Bxc6 {[%emt 0:00:44]} Nc5 {[%emt 0:00:17]} 54. Bg7 {[%emt 0:02:34]} h5 {[%emt 0:01:23]} 55. Nc3 {[%emt 0:00:30] aiming for Ne2+.} Bd7 {[%emt 0:01:03]} 56. Nd5+ {[%emt 0:01:36]} Kf5 {[%emt 0:00:11]} 57. Ne3+ {[%emt 0:00:22]} Kf4 {[%emt 0:00:34]} 58. Bxd7 {[%emt 0:01:30]} Nxd7 {[%emt 0:00:08]} 59. Nc4 {[%emt 0:00:07]} f6 {[%emt 0:00:27] Repels Ne5} 60. Kg2 $2 {[%emt 0:00:34]} ({White has to play} 60. Ke2 $18) 60... g5 $14 {[%emt 0:00:17] [#]} 61. Bxf6 $1 {[%emt 0:00:19]} Nxf6 {[%emt 0:00:47][%mdl 4096] Endgame. KN-KN} 62. Nb6 {[%emt 0:00:06]} g4 {[%emt 0:01:16]} 63. d7 {[%emt 0:00:06]} Nxd7 $1 {[%emt 0:00:04]} 64. Nxd7 {[%emt 0:00:02] KN-KPP} h4 {[%emt 0:00:07]} 65. Nb6 {[%emt 0:01:08]} (65. Kg1 $14) 65... Ke4 {[%emt 0:00:08]} ({Black should play} 65... h3+ $1 $11 66. Kh1 g3) 66. Nc4 {[%emt 0:00:13]} Kf4 {[%emt 0:00:07]} 67. Nd6 {[%emt 0:00:28]} Ke5 {[%emt 0:00:22]} 68. Nc4+ {[%emt 0:00:28]} Kf4 {[%emt 0:02:53]} 69. Nd2 {[%emt 0:00:31]} Ke3 {[%emt 0:00:39]} 70. Nb1 {[%emt 0:00:07]} Kf4 {[%emt 0:00:09]} 71. Nc3 {[%emt 0:00:04]} Ke3 {[%emt 0:00:51]} 72. Kf1 {[%emt 0:01:06]} (72. Nb5 $14) 72... g3 $2 {[%emt 0:01:07][%mdl 8192]} (72... Kf3 $11) 73. h3 {[%emt 0:00:30] White mates.} Kf3 {[%emt 0:00:05]} 74. Ne2 $1 {[%emt 0:01:46]} g2+ {[%emt 0:05:30] [#]} 75. Ke1 $1 {[%emt 0:00:07]} ({Weaker is} 75. Kg1 Kxe2 76. Kxg2 Ke3 $11) 75... g1=Q+ {[%emt 0:00:37]} 76. Nxg1+ {[%emt 0:00:03]} Kg2 {[%emt 0:01:01] [#]} 77. Ke2 $1 {[%emt 0:00:08] Both players deserved the win here.   Weighted Error Value: White=0.49/Black=0.50.  Loses game:     	White=1     	Black=2      Missed win:     	---       	Black=1      Mistake:       	White=10    	Black=8      Inaccurate:     	White=6     	Black=4      OK:         	White=13    	Black=16     Best:        	White=6     	Black=8      Strong:       	White=1     	Black=4} 1-0

[Event "53rd Mar Del Plata Open 2024"]
[Site "Mar Del Plata"]
[Date "2024.03.25"]
[Round "3.1"]
[White "Ocampos, Ian"]
[Black "Christiansen, Johan-Sebastian"]
[Result "0-1"]
[ECO "C19"]
[WhiteElo "2208"]
[BlackElo "2633"]
[Annotator "TA"]
[PlyCount "146"]
[EventDate "2024.03.23"]
[EventType "swiss"]
[EventCountry "ARG"]
[SourceTitle "playchess.com"]
[Source "ChessBase"]
[SourceQuality "1"]
[TimeControl "5400+30"]

{[%evp 18,146,-5,-27,-6,-33,-12,-48,-17,-34,-22,-20,-7,-7,-8,-21,-22,-25,-21,-9,-10,-40,0,-10,0,-11,0,0,0,-9,-2,-20,-20,-38,-47,-41,-10,-56,-20,-76,-21,-142,-59,-82,-68,-43,53,-40,-22,-155,-160,-164,-68,-72,-20,-47,-43,-126,-64,-254,-255,-336,-267,-327,-319,-413,-74,-141,0,0,0,-177,-170,-172,-146,-223,-147,-154,-148,-148,-137,-1050,-372,-377,-356,-356,-48,-48,620,-390,-390,-376,-8,-8,-8,-8,-7,-8,0,0,0,0,0,-66,-63,-63,-22,-27,0,-60,-60,-60,-60,-60,-61,-60,-52,-68,-68,-68,-68,-70,-70,-72,-70,-198,-198,-29976,-29975,-29977,-29977]} 1. e4 {[%emt 0:15:33]} e6 {[%emt 0:00:55]} 2. d4 {[%emt 0:00:07]} d5 {[%emt 0:00:06]} 3. Nc3 {[%emt 0:00:10]} Bb4 {[%emt 0:01:45]} 4. e5 {[%emt 0:00:07]} c5 {[%emt 0:00:27]} 5. a3 {[%emt 0:00:07]} Bxc3+ {[%emt 0:00:18]} 6. bxc3 {[%emt 0:00:05]} Qc7 {[%emt 0:00:36]} 7. h4 {[%emt 0:00:47]} Ne7 {[%emt 0:03:03]} 8. h5 {[%emt 0:02:15]} h6 {[%emt 0:01:51]} 9. Nf3 {[%emt 0:00:25]} b6 {[%emt 0:03:37]} 10. a4 {[%emt 0:00:26][%cal Oa4a5]} Ba6 {[%emt 0:03:14]} 11. Bxa6 {[%emt 0:01:32]} Nxa6 {[%emt 0:00:05]} 12. O-O {[%emt 0:04:03]} Rc8 {[%emt 0:02:57] Black is slightly better.} 13. Qe2 {[%emt 0:09:00]} Nb8 {[%emt 0:00:22]} 14. a5 {[%emt 0:00:50]} Nd7 {[%emt 0:03:59]} 15. axb6 {[%emt 0:01:21]} axb6 {[%emt 0:00:02]} 16. dxc5 {[%emt 0:13:48]} bxc5 {[%emt 0:03:14]} 17. c4 {[%emt 0:01:11]} dxc4 {[%emt 0:02:29]} 18. Qxc4 {[%emt 0:05:52]} O-O {[%emt 0:00:42]} 19. Re1 {[%emt 0:00:28]} Rb8 {[%emt 0:04:50]} 20. Bd2 {[%emt 0:01:41]} Rfc8 {[%emt 0:03:49]} 21. Ra3 {[%emt 0:00:32]} Nc6 {[%emt 0:03:01]} 22. Qe4 {[%emt 0:03:14]} Ra8 {[%emt 0:09:32]} 23. Rae3 {[%emt 0:02:25]} Nb6 {[%emt 0:08:28]} 24. Qg4 {[%emt 0:01:12]} Ne7 {[%emt 0:05:51]} 25. Re4 {[%emt 0:06:32]} Kh8 {[%emt 0:03:20]} 26. Qf4 {[%emt 0:02:12]} Rf8 {[%emt 0:03:59]} 27. g4 {[%emt 0:02:20]} (27. c4 $11) 27... Ra3 {[%emt 0:04:39]} 28. Nh4 {[%emt 0:01:53]} (28. c4 $11 {remains equal.}) 28... Qd8 {[%emt 0:09:35]} (28... Nbd5 $17 29. Qh2 Ra2) 29. Bc1 {[%emt 0:06:22]} (29. g5 $1 $11 {was the only way to keep the balance.} hxg5 30. Qxg5) 29... Ned5 {[%emt 0:00:26]} (29... Nbd5 $1 $17 {[%cal Rd5f4]} 30. Qd2 Rh3) 30. Qh2 $15 {[%emt 0:01:19]} Ra1 {[%emt 0:00:02]} 31. Qg3 {[%emt 0:01:26] Dodges Nc3} Ne7 {[%emt 0:02:08]} (31... Nb4 $15 32. R4e2 Na2) 32. Qc3 {[%emt 0:06:06]} ({White should try} 32. g5 $14) 32... Qa8 {[%emt 0:02:04][%cal Oa1c1]} 33. f3 {[%emt 0:00:24]} (33. Qf3 $11 {keeps the balance.}) 33... Ned5 $17 {[%emt 0:05:19]} 34. Qd2 {[%emt 0:06:06]} Qd8 {[%emt 0:00:29]} (34... Rd8 $1 $19 {[%cal Od5f6] Hoping for ...Nf6!} 35. R4e2 Nc4) 35. Ng2 $15 {[%emt 0:01:34]} c4 {[%emt 0:02:08]} (35... Ra2 $17 36. R1e2 Rg8) 36. Qd4 {[%emt 0:01:18]} Ra2 {[%emt 0:02:05]} 37. R1e2 {[%emt 0:00:56]} (37. Qf2 $15) 37... Na4 {[%emt 0:04:49]} (37... Qc7 $17 {Threatens to win with ...Rd8.} 38. Rf2 c3) 38. Qxc4 $2 {[%emt 0:03:00]} ({Better is} 38. Rf2 $15) 38... Nac3 $19 {[%emt 0:00:01][%cal Od8b8]} 39. Re1 {[%emt 0:00:19]} Rxc2 {[%emt 0:00:44] And now ...Qb6+ would win.} 40. Qb3 {[%emt 0:00:00]} Ra2 {[%emt 0:02:49]} 41. Rc4 {[%emt 0:00:24]} Ne2+ {[%emt 0:00:28] A dynamic duo of knights.} (41... Qa5 $1 $19 42. Kh2 Qa7 43. Rxc3 Nxc3 (43... Qf2 $2 44. Qxa2 Qxa2 45. Ra3 $19)) 42. Kf1 {[%emt 0:01:13]} (42. Rxe2 $142 Rxe2 43. Kf1 Rxe5 44. f4 Nxf4 45. Rxf4) 42... Ng3+ {[%emt 0:00:10]} (42... Nxc1 $17 43. Rexc1 Qa8) 43. Kg1 $11 {[%emt 0:00:01]} Ne2+ $2 {[%emt 0:00:36]} (43... Qa8 $11 44. Rc2 Ra4) 44. Kf1 $1 $19 {[%emt 0:00:01]} Nxc1 {[%emt 0:00:21]} 45. Rexc1 {[%emt 0:01:00]} Qa8 {[%emt 0:00:45] Strongly threatening ...Qa7.} 46. Qd3 {[%emt 0:01:01]} (46. Kg1 $17 {was worth a try.}) 46... Rd8 {[%emt 0:00:20]} 47. Qe4 {[%emt 0:00:16]} Qa7 {[%emt 0:00:46] Black is more active.} 48. R4c2 {[%emt 0:00:56] Against Qf2+} Ra4 {[%emt 0:00:32]} 49. Rc8 $2 {[%emt 0:00:37][%mdl 8192]} (49. Qe2 $17) 49... Rxe4 $2 {[%emt 0:00:38]} (49... Qa6+ 50. Kf2 Qb6+ (50... Rxc8 51. Rxc8+ Qxc8 52. Qxa4 $11) 51. Kg3 Rxe4 52. fxe4 Ne7 53. Rxd8+ Qxd8) 50. Rxd8+ {[%emt 0:00:04]} Kh7 {[%emt 0:00:01]} 51. Rcc8 {[%emt 0:00:57][%csl Gc8][%cal Rd8h8]} Qa6+ $2 {[%emt 0:00:28]} (51... Rxe5 52. Rh8#) (51... Qa1+ $19 52. Kf2 Qd4+ (52... Rxe5 53. Rh8#) 53. Kg3 Rxg4+ (53... Qxe5+ 54. f4 $11) 54. fxg4 Qxe5+ 55. Kh3 g5 56. hxg6+ Kxg6 57. Rg8+ Kh7 58. Rh8+ Qxh8 59. Rxh8+ Kxh8) 52. Kg1 $1 $15 {[%emt 0:00:06][%csl Gc8][%cal Rd8h8]} Qa1+ $2 {[%emt 0:00:50][%mdl 8192]} (52... Rxe5 53. Rh8#) (52... Qxc8 $15 53. Rxc8 Rxe5) 53. Kf2 $4 {[%emt 0:00:07][%mdl 8192] [#]} (53. Kh2 $18 {[%csl Gc8][%cal Rd8h8] was the only winning move.} Qxe5+ 54. f4 Qxh5+ 55. gxh5) 53... Qd4+ $1 $19 {[%emt 0:00:11]} (53... Rxe5 54. Rh8#) 54. Kg3 {[%emt 0:00:44][%csl Gc8][%cal Rd8h8] [#]} Qxe5+ $2 {[%emt 0:00:53]} (54... Rxg4+ $1 $19 55. fxg4 Qxe5+ 56. Kf3 g5 (56... Qf6+ $2 57. Ke2 $19) 57. hxg6+ Kxg6 58. Rg8+ Kf6) 55. f4 $1 $132 {[%emt 0:00:03][%csl Gc8][%cal Rd8h8][%mdl 2048] [#] White has counterplay} Qc3+ $1 {[%emt 0:00:19]} 56. Rxc3 {[%emt 0:00:14]} Nxc3 {[%emt 0:00:01][%mdl 4096] Endgame. KRN-KRN} 57. Rf8 {[%emt 0:00:29]} Rc4 {[%emt 0:01:16]} 58. Rxf7 {[%emt 0:00:12]} Ne4+ {[%emt 0:00:01]} 59. Kf3 {[%emt 0:01:02]} Nf6 {[%emt 0:00:00]} 60. Re7 {[%emt 0:01:15]} (60. Ne3 $11 Rc3 61. Ke2) 60... Rc3+ $1 $15 {[%emt 0:00:01]} 61. Ke2 $1 {[%emt 0:00:29]} Rg3 {[%emt 0:01:03]} 62. Kf2 $1 {[%emt 0:00:24]} (62. Ne3 $2 Rxe3+ (62... Nxg4 63. Nxg4 Rxg4 64. Rxe6 $11) 63. Kd2 Nxg4 $19) 62... Ne4+ {[%emt 0:01:09]} (62... Nxg4+ $2 {loses.} 63. Kxg3 Nf6 64. Kh4 $18 (64. Rxe6 Nd5 $18)) 63. Kf1 {[%emt 0:00:01]} (63. Ke2 $11) 63... Rxg4 {[%emt 0:00:25]} 64. Rxe6 {[%emt 0:00:04]} Ng3+ {[%emt 0:00:09]} 65. Kf2 {[%emt 0:00:14] Black must now prevent Kf3.} Nxh5 {[%emt 0:00:04][%cal Og4g2] ...Rxg2+! is the strong threat.} 66. Re4 {[%emt 0:02:00]} Rg6 {[%emt 0:01:20]} 67. Ne3 {[%emt 0:00:28]} Ra6 {[%emt 0:00:16]} 68. Kf3 {[%emt 0:00:11]} Nf6 {[%emt 0:00:12]} 69. Rc4 {[%emt 0:00:38]} Ra3 {[%emt 0:00:09] aiming for ...Nd5.} 70. Kf2 {[%emt 0:00:29]} Kg6 {[%emt 0:00:25]} 71. f5+ {[%emt 0:00:20]} (71. Ke2 $15) 71... Kg5 $19 {[%emt 0:01:00]} 72. Rc7 $2 {[%emt 0:00:18] [#]} (72. Nc2 $19 Ra7 73. Ne3) 72... Rxe3 $1 {[%emt 0:00:36][%mdl 512]} 73. Rxg7+ {[%emt 0:00:03]} (73. Kg2 Nh5) 73... Kf4 $1 {[%emt 0:00:04] What a fight!   Weighted Error Value: White=0.54/Black=0.72.  Loses game:     	White=2     	Black=1      Missed win:     	White=1     	Black=3      Mistake:       	White=12    	Black=9      Inaccurate:     	White=5     	Black=7      OK:         	White=12    	Black=15     Best:        	White=5     	Black=3      Strong:       	White=5     	Black=2      Brilliant:      	---       	Black=2} ({And not} 73... Kxf5 74. Kxe3 Ke5 75. Ra7 $11) 0-1

[Event "53rd Mar Del Plata Open 2024"]
[Site "Mar Del Plata"]
[Date "2024.03.24"]
[Round "3.2"]
[White "Felgaer, Ruben"]
[Black "Amura, Claudia"]
[Result "1-0"]
[ECO "B32"]
[WhiteElo "2565"]
[BlackElo "2207"]
[Annotator "TA"]
[PlyCount "43"]
[EventDate "2024.03.23"]
[EventType "swiss"]
[EventCountry "ARG"]
[SourceTitle "playchess.com"]
[Source "ChessBase"]
[SourceQuality "1"]
[TimeControl "5400+30"]

{[%evp 15,43,22,38,39,47,47,101,71,97,106,93,97,142,137,203,218,216,210,197,192,200,206,196,160,154,155,224,219,316,330]} 1. e4 {[%emt 0:00:08]} c5 {[%emt 0:00:25]} 2. Nf3 {[%emt 0:00:18]} Nc6 {[%emt 0:00:18]} 3. d4 {[%emt 0:01:29]} cxd4 {[%emt 0:00:52]} 4. Nxd4 {[%emt 0:00:07]} e5 {[%emt 0:00:05]} 5. Nb5 {[%emt 0:00:34]} d6 {[%emt 0:01:37]} 6. N1c3 {[%emt 0:00:51]} a6 {[%emt 0:08:08]} 7. Na3 {[%emt 0:00:27]} b5 {[%emt 0:00:22]} 8. Nd5 {[%emt 0:01:02]} Nge7 {[%emt 0:00:04]} 9. Bd3 {[%emt 0:04:28]} Rb8 {[%emt 0:12:39]} 10. O-O {[%emt 0:05:17]} Nxd5 {[%emt 0:10:45]} (10... Nd4 $14) 11. exd5 $16 {[%emt 0:00:06] White is better.} Nd4 {[%emt 0:00:04]} 12. c3 {[%emt 0:02:47]} Nf5 {[%emt 1:01:11]} 13. Nc2 {[%emt 1:19:26][%cal Ba3c2,Bc2b4,Bb4c6][%mdl 32]} g6 {[%emt 0:00:30]} 14. Nb4 {[%emt 0:00:30] And now Nc6 would win.} Qb6 {[%emt 0:00:00]} (14... Bd7 $16 15. Nxa6 Ra8) 15. Nc6 {[%emt 0:00:00]} Rb7 {[%emt 0:01:00]} 16. a4 {[%emt 0:01:00] [#] Threatens to win with axb5.} Bg7 {[%emt 0:00:00]} 17. axb5 {[%emt 0:00:00]} axb5 {[%emt 0:01:00]} 18. Ra5 {[%emt 0:00:00]} O-O {[%emt 0:00:00]} 19. Rxb5 Qc7 {[%emt 0:01:00]} 20. Qa4 {[%emt 0:02:00] White is much more active.} h5 {[%emt 0:00:00]} (20... Ne7 $16) 21. Bg5 $18 Bd7 {[%emt 0:01:00] [#]} (21... Re8 $142 22. Ra1 Rxb5 23. Qxb5 (23. Bxb5 f6 $18) 23... Bd7 24. Bxf5 gxf5) 22. Bd8 $1 {[%emt 0:01:00][%mdl 512] Weighted Error Value: White=0.04 (flawless) /Black=0.28 (precise) .  Mistake:       	---       	Black=4      Inaccurate:     	---       	Black=2      OK:         	White=10    	Black=5} 1-0